fUSD/lending_fUSD_20260622
["ID","MTS","AMOUNT","RATE_DAILY","PERIOD"]
[426048784,1782131502000,-500.0,0.00027945,2]
[426048785,1782131502000,-500.0,0.00027945,2]
[426048786,1782131502000,-500.0,0.00027945,2]
[426048766,1782131502000,-500.0,0.00027945,2]
[426048787,1782131502000,-500.0,0.00027945,2]
[426048776,1782131502000,-2103.48,0.00027945,2]
[426048763,1782131502000,-500.0,0.00027945,2]
[426048749,1782131502000,-733.03,0.00027945,2]
[426048753,1782131502000,-500.0,0.00027945,2]
[426048789,1782131502000,-500.0,0.00027945,2]
[426048741,1782131502000,-500.0,0.00027945,2]
[426048737,1782131502000,-500.0,0.00027945,2]
[426048738,1782131502000,-289.21,0.00027945,2]
[426048742,1782131502000,-422.21,0.00027945,2]
[426048736,1782131502000,-500.0,0.00027945,2]
[426048740,1782131502000,-322.89,0.00027945,2]
[426048739,1782131502000,-500.0,0.00027945,2]
[426048744,1782131502000,-620.52,0.00027945,2]
[426048745,1782131502000,-500.0,0.00027945,2]
[426048743,1782131502000,-500.0,0.00027945,2]
[426048747,1782131502000,-469.64,0.00027945,2]
[426048746,1782131502000,-500.0,0.00027945,2]
[426048748,1782131502000,-2693.07,0.00027945,2]
[426048750,1782131502000,-500.0,0.00027945,2]
[426048751,1782131502000,-861.51,0.00027945,2]
[426048752,1782131502000,-566.57,0.00027945,2]
[426048757,1782131502000,-500.0,0.00027945,2]
[426048758,1782131502000,-500.0,0.00027945,2]
[426048756,1782131502000,-500.0,0.00027945,2]
[426048760,1782131502000,-500.0,0.00027945,2]
[426048761,1782131502000,-1000.0,0.00027945,2]
[426048755,1782131502000,-500.0,0.00027945,2]
[426048759,1782131502000,-250.60709953,0.00027945,2]
[426048754,1782131502000,-500.0,0.00027945,2]
[426048762,1782131502000,-500.0,0.00027945,2]
[426048790,1782131502000,-500.0,0.00027945,2]
[426048794,1782131502000,-500.0,0.00027945,2]
[426048791,1782131502000,-500.0,0.00027945,2]
[426048825,1782131502000,-698.47,0.00027945,2]
[426048820,1782131502000,-500.0,0.00027945,2]
[426048824,1782131502000,-500.0,0.00027945,2]
[426048822,1782131502000,-500.0,0.00027945,2]
[426048829,1782131502000,-1706.4,0.00027945,2]
[426048828,1782131502000,-500.0,0.00027945,2]
[426048827,1782131502000,-500.0,0.00027945,2]
[426048823,1782131502000,-500.0,0.00027945,2]
[426048826,1782131502000,-500.0,0.00027945,2]
[426048841,1782131502000,-500.0,0.00027945,2]
[426048830,1782131502000,-500.0,0.00027945,2]
[426048819,1782131502000,-500.0,0.00027945,2]
[426048832,1782131502000,-500.0,0.00027945,2]
[426048838,1782131502000,-500.0,0.00027945,2]
[426048840,1782131502000,-626.49,0.00027945,2]
[426048835,1782131502000,-500.0,0.00027945,2]
[426048836,1782131502000,-500.0,0.00027945,2]
[426048834,1782131502000,-500.0,0.00027945,2]
[426048839,1782131502000,-500.0,0.00027945,2]
[426048837,1782131502000,-500.0,0.00027945,2]
[426048843,1782131502000,-830.91,0.00027945,2]
[426048844,1782131502000,-403.08881304,0.00027945,2]
[426048842,1782131502000,-585.33,0.00027945,2]
[426048793,1782131502000,-700.0,0.00027945,4]
[426048833,1782131502000,-593.32,0.00027945,2]
[426048821,1782131502000,-500.0,0.00027945,2]
[426048831,1782131502000,-1155.68,0.00027945,2]
[426048818,1782131502000,-500.0,0.00027945,2]
[426048817,1782131502000,-428.44,0.00027945,2]
[426048795,1782131502000,-500.0,0.00027945,2]
[426048792,1782131502000,-500.0,0.00027945,2]
[426048796,1782131502000,-500.0,0.00027945,2]
[426048797,1782131502000,-500.0,0.00027945,2]
[426048799,1782131502000,-500.0,0.00027945,2]
[426048798,1782131502000,-500.0,0.00027945,2]
[426048803,1782131502000,-500.0,0.00027945,2]
[426048800,1782131502000,-500.0,0.00027945,2]
[426048806,1782131502000,-500.0,0.00027945,2]
[426048801,1782131502000,-554.28,0.00027945,2]
[426048807,1782131502000,-500.0,0.00027945,2]
[426048788,1782131502000,-500.0,0.00027945,2]
[426048805,1782131502000,-500.0,0.00027945,2]
[426048802,1782131502000,-500.0,0.00027945,2]
[426048814,1782131502000,-500.0,0.00027945,2]
[426048815,1782131502000,-178.78,0.00027945,2]
[426048813,1782131502000,-785.53,0.00027945,2]
[426048811,1782131502000,-500.0,0.00027945,2]
[426048816,1782131502000,-500.0,0.00027945,2]
[426048810,1782131502000,-500.0,0.00027945,2]
[426048808,1782131502000,-500.0,0.00027945,2]
[426048809,1782131502000,-500.0,0.00027945,2]
[426048804,1782131502000,-500.0,0.00027945,2]
[426048812,1782131502000,-2746.21,0.00027945,2]
[426048883,1782131503000,-500.0,0.00027945,2]
[426048874,1782131503000,-500.0,0.00027945,2]
[426048875,1782131503000,-500.0,0.00027945,2]
[426048876,1782131503000,-500.0,0.00027945,2]
[426048880,1782131503000,-500.0,0.00027945,2]
[426048877,1782131503000,-784.56,0.00027945,2]
[426048878,1782131503000,-470.97,0.00027945,2]
[426048873,1782131503000,-500.0,0.00027945,2]
[426048884,1782131503000,-500.0,0.00027945,2]
[426048879,1782131503000,-318.05,0.00027945,2]
[426048881,1782131503000,-500.0,0.00027945,2]
[426048895,1782131503000,-519.8,0.00027945,2]
[426048886,1782131503000,-304.3,0.00027945,2]
[426048885,1782131503000,-296.2,0.00027945,2]
[426048894,1782131503000,-526.17,0.00027945,2]
[426048887,1782131503000,-500.0,0.00027945,2]
[426048888,1782131503000,-500.0,0.00027945,2]
[426048889,1782131503000,-500.0,0.00027945,2]
[426048893,1782131503000,-500.0,0.00027945,2]
[426048892,1782131503000,-500.0,0.00027945,2]
[426048890,1782131503000,-1158.24,0.00027945,2]
[426048891,1782131503000,-548.28,0.00027945,2]
[426048872,1782131503000,-500.0,0.00027945,2]
[426048882,1782131503000,-646.14,0.00027945,2]
[426048869,1782131503000,-500.0,0.00027945,2]
[426048896,1782131503000,-500.0,0.00027945,2]
[426048870,1782131503000,-500.0,0.00027945,2]
[426048846,1782131503000,-500.0,0.00027945,2]
[426048845,1782131503000,-500.0,0.00027945,2]
[426048851,1782131503000,-500.0,0.00027945,2]
[426048849,1782131503000,-699.61,0.00027945,2]
[426048848,1782131503000,-500.0,0.00027945,2]
[426048847,1782131503000,-500.0,0.00027945,2]
[426048850,1782131503000,-1326.5,0.00027945,2]
[426048852,1782131503000,-500.0,0.00027945,2]
[426048862,1782131503000,-500.0,0.00027945,2]
[426048854,1782131503000,-500.0,0.00027945,2]
[426048855,1782131503000,-500.0,0.00027945,2]
[426048871,1782131503000,-500.0,0.00027945,2]
[426048858,1782131503000,-604.11,0.00027945,2]
[426048856,1782131503000,-500.0,0.00027945,2]
[426048853,1782131503000,-500.0,0.00027945,2]
[426048857,1782131503000,-500.0,0.00027945,2]
[426048861,1782131503000,-500.0,0.00027945,2]
[426048860,1782131503000,-500.0,0.00027945,2]
[426048864,1782131503000,-553.22,0.00027945,2]
[426048866,1782131503000,-500.0,0.00027945,2]
[426048867,1782131503000,-3549.98,0.00027945,2]
[426048865,1782131503000,-500.0,0.00027945,2]
[426048863,1782131503000,-1302.85,0.00027945,2]
[426048868,1782131503000,-636.95,0.00027945,2]
[426048859,1782131503000,-500.0,0.00027945,2]
[426048897,1782131503000,-567.35,0.00027945,2]
[426048900,1782131503000,-500.0,0.00027945,2]
[426048951,1782131503000,-500.0,0.00027945,2]
[426048928,1782131503000,-1362.17,0.00027945,2]
[426048930,1782131503000,-500.0,0.00027945,2]
[426048938,1782131503000,-500.0,0.00027945,2]
[426048929,1782131503000,-695.59,0.00027945,2]
[426048934,1782131503000,-500.0,0.00027945,2]
[426048936,1782131503000,-500.0,0.00027945,2]
[426048935,1782131503000,-500.0,0.00027945,2]
[426048932,1782131503000,-500.0,0.00027945,2]
[426048933,1782131503000,-500.0,0.00027945,2]
[426048931,1782131503000,-500.0,0.00027945,2]
[426048940,1782131503000,-500.0,0.00027945,2]
[426048925,1782131503000,-500.0,0.00027945,2]
[426048947,1782131503000,-500.0,0.00027945,2]
[426048942,1782131503000,-500.0,0.00027945,2]
[426048944,1782131503000,-500.0,0.00027945,2]
[426048946,1782131503000,-504.85,0.00027945,2]
[426048945,1782131503000,-500.0,0.00027945,2]
[426048939,1782131503000,-500.0,0.00027945,2]
[426048943,1782131503000,-711.86,0.00027945,2]
[426048950,1782131503000,-500.0,0.00027945,2]
[426048949,1782131503000,-500.0,0.00027945,2]
[426048948,1782131503000,-500.0,0.00027945,2]
[426048952,1782131503000,-500.0,0.00027945,2]
[426048898,1782131503000,-500.0,0.00027945,2]
[426048941,1782131503000,-500.0,0.00027945,2]
[426048927,1782131503000,-500.0,0.00027945,2]
[426048937,1782131503000,-1838.48,0.00027945,2]
[426048922,1782131503000,-3395.17,0.00027945,2]
[426048924,1782131503000,-500.0,0.00027945,2]
[426048899,1782131503000,-500.0,0.00027945,2]
[426048903,1782131503000,-500.0,0.00027945,2]
[426048906,1782131503000,-500.0,0.00027945,2]
[426048902,1782131503000,-500.0,0.00027945,2]
[426048904,1782131503000,-546.18,0.00027945,2]
[426048905,1782131503000,-500.0,0.00027945,2]
[426048908,1782131503000,-500.0,0.00027945,2]
[426048918,1782131503000,-1496.54,0.00027945,2]
[426048907,1782131503000,-500.0,0.00027945,2]
[426048909,1782131503000,-500.0,0.00027945,2]
[426048911,1782131503000,-500.0,0.00027945,2]
[426048901,1782131503000,-500.0,0.00027945,2]
[426048916,1782131503000,-1271.92,0.00027945,2]
[426048914,1782131503000,-500.0,0.00027945,2]
[426048926,1782131503000,-500.0,0.00027945,2]
[426048919,1782131503000,-500.0,0.00027945,2]
[426048921,1782131503000,-500.0,0.00027945,2]
[426048920,1782131503000,-500.0,0.00027945,2]
[426048923,1782131503000,-500.0,0.00027945,2]
[426048912,1782131503000,-500.0,0.00027945,2]
[426048917,1782131503000,-500.0,0.00027945,2]
[426048915,1782131503000,-500.0,0.00027945,2]
[426048910,1782131503000,-500.0,0.00027945,2]
[426048913,1782131503000,-500.0,0.00027945,2]
[426048994,1782131504000,-5138.93,0.00027945,2]
[426048987,1782131504000,-500.0,0.00027945,2]
[426048986,1782131504000,-500.0,0.00027945,2]
[426048983,1782131504000,-500.0,0.00027945,2]
[426048989,1782131504000,-616.23,0.00027945,2]
[426048984,1782131504000,-500.0,0.00027945,2]
[426048982,1782131504000,-11028.8,0.00027945,2]
[426048981,1782131504000,-500.0,0.00027945,2]
[426048985,1782131504000,-500.0,0.00027945,2]
[426048993,1782131504000,-847.85,0.00027945,2]
[426048988,1782131504000,-500.0,0.00027945,2]
[426048991,1782131504000,-500.0,0.00027945,2]
[426049001,1782131504000,-500.0,0.00027945,2]
[426048992,1782131504000,-1000.0,0.00027945,2]
[426048996,1782131504000,-500.0,0.00027945,2]
[426048995,1782131504000,-500.0,0.00027945,2]
[426049006,1782131504000,-500.0,0.00027945,2]
[426049002,1782131504000,-500.0,0.00027945,2]
[426049000,1782131504000,-1204.89,0.00027945,2]
[426049008,1782131504000,-500.0,0.00027945,2]
[426049004,1782131504000,-2000.0,0.00027945,2]
[426049007,1782131504000,-500.0,0.00027945,2]
[426049003,1782131504000,-500.0,0.00027945,2]
[426048980,1782131504000,-500.0,0.00027945,2]
[426048990,1782131504000,-500.0,0.00027945,2]
[426048979,1782131504000,-500.0,0.00027945,2]
[426049012,1782131504000,-687.7,0.00027945,2]
[426048978,1782131504000,-500.0,0.00027945,2]
[426048999,1782131504000,-849.12,0.00027945,2]
[426048953,1782131504000,-500.0,0.00027945,2]
[426048954,1782131504000,-500.0,0.00027945,2]
[426048955,1782131504000,-500.0,0.00027945,2]
[426048961,1782131504000,-500.0,0.00027945,2]
[426048960,1782131504000,-6186.73,0.00027945,2]
[426048956,1782131504000,-500.0,0.00027945,2]
[426048962,1782131504000,-500.0,0.00027945,2]
[426048963,1782131504000,-500.0,0.00027945,2]
[426048957,1782131504000,-500.0,0.00027945,2]
[426048958,1782131504000,-4341.82,0.00027945,2]
[426048959,1782131504000,-500.0,0.00027945,2]
[426048968,1782131504000,-500.0,0.00027945,2]
[426048965,1782131504000,-500.0,0.00027945,2]
[426048964,1782131504000,-500.0,0.00027945,2]
[426048966,1782131504000,-500.0,0.00027945,2]
[426048967,1782131504000,-500.0,0.00027945,2]
[426048969,1782131504000,-500.0,0.00027945,2]
[426048970,1782131504000,-500.0,0.00027945,2]
[426048973,1782131504000,-500.0,0.00027945,2]
[426048972,1782131504000,-4113.41,0.00027945,2]
[426048974,1782131504000,-2940.44,0.00027945,2]
[426048971,1782131504000,-204.04145397,0.00027945,2]
[426048975,1782131504000,-500.0,0.00027945,2]
[426048977,1782131504000,-500.0,0.00027945,2]
[426048976,1782131504000,-500.0,0.00027945,2]
[426049005,1782131504000,-8197.77,0.00027945,2]
[426049029,1782131504000,-500.0,0.00027945,2]
[426048998,1782131504000,-500.0,0.00027945,2]
[426049042,1782131504000,-500.0,0.00027945,2]
[426049036,1782131504000,-494.9916271,0.00027945,2]
[426049039,1782131504000,-500.0,0.00027945,2]
[426049041,1782131504000,-500.0,0.00027945,2]
[426049043,1782131504000,-500.0,0.00027945,2]
[426049044,1782131504000,-500.0,0.00027945,2]
[426048997,1782131504000,-500.0,0.00027945,2]
[426049046,1782131504000,-4227.56,0.00027945,2]
[426049045,1782131504000,-6843.28,0.00027945,2]
[426049048,1782131504000,-1169.7,0.00027945,2]
[426049049,1782131504000,-500.0,0.00027945,2]
[426049052,1782131504000,-225.22,0.00027945,2]
[426049053,1782131504000,-500.0,0.00027945,2]
[426049050,1782131504000,-500.0,0.00027945,2]
[426049051,1782131504000,-4492.09,0.00027945,2]
[426049054,1782131504000,-500.0,0.00027945,2]
[426049061,1782131504000,-7004.08,0.00027945,2]
[426049060,1782131504000,-500.0,0.00027945,2]
[426049063,1782131504000,-957.109843,0.00027945,7]
[426049059,1782131504000,-500.0,0.00027945,2]
[426049055,1782131504000,-598.67,0.00027945,2]
[426049057,1782131504000,-6597.51,0.00027945,2]
[426049056,1782131504000,-500.0,0.00027945,2]
[426049062,1782131504000,-500.0,0.00027945,2]
[426049058,1782131504000,-5976.83,0.00027945,2]
[426049033,1782131504000,-7121.05,0.00027945,2]
[426049038,1782131504000,-500.0,0.00027945,2]
[426049047,1782131504000,-500.0,0.00027945,2]
[426049037,1782131504000,-500.0,0.00027945,2]
[426049009,1782131504000,-500.0,0.00027945,2]
[426049011,1782131504000,-3373.56,0.00027945,2]
[426049013,1782131504000,-500.0,0.00027945,2]
[426049010,1782131504000,-421.56052929,0.00027945,2]
[426049040,1782131504000,-500.0,0.00027945,2]
[426049016,1782131504000,-685.72,0.00027945,2]
[426049014,1782131504000,-570.0,0.00027945,2]
[426049015,1782131504000,-713.2,0.00027945,2]
[426049019,1782131504000,-500.0,0.00027945,2]
[426049017,1782131504000,-500.0,0.00027945,2]
[426049021,1782131504000,-500.0,0.00027945,2]
[426049030,1782131504000,-500.0,0.00027945,2]
[426049018,1782131504000,-500.0,0.00027945,2]
[426049022,1782131504000,-500.0,0.00027945,2]
[426049035,1782131504000,-657.57,0.00027945,2]
[426049034,1782131504000,-500.0,0.00027945,2]
[426049020,1782131504000,-500.0,0.00027945,2]
[426049026,1782131504000,-1010.5,0.00027945,2]
[426049025,1782131504000,-591.59,0.00027945,2]
[426049028,1782131504000,-500.0,0.00027945,2]
[426049032,1782131504000,-1413.15,0.00027945,2]
[426049031,1782131504000,-500.0,0.00027945,2]
[426049024,1782131504000,-557.86,0.00027945,2]
[426049023,1782131504000,-500.0,0.00027945,2]
[426049027,1782131504000,-500.0,0.00027945,2]
[426049092,1782131505000,-430.319792,0.00027945,7]
[426049082,1782131505000,-500.0,0.00027945,2]
[426049088,1782131505000,-512.27,0.00027945,2]
[426049095,1782131505000,-4376.06,0.00027945,2]
[426049094,1782131505000,-500.0,0.00027945,2]
[426049089,1782131505000,-500.0,0.00027945,2]
[426049087,1782131505000,-500.0,0.00027945,2]
[426049093,1782131505000,-500.0,0.00027945,2]
[426049090,1782131505000,-500.0,0.00027945,2]
[426049104,1782131505000,-430.319785,0.00027945,7]
[426049098,1782131505000,-430.319792,0.00027945,7]
[426049096,1782131505000,-500.0,0.00027945,2]
[426049100,1782131505000,-500.0,0.00027945,2]
[426049097,1782131505000,-151.0,0.00027945,7]
[426049099,1782131505000,-1212.631082,0.00027945,7]
[426049102,1782131505000,-500.0,0.00027945,2]
[426049101,1782131505000,-500.0,0.00027945,2]
[426049084,1782131505000,-1002.58,0.00027945,2]
[426049091,1782131505000,-8639.58,0.00027945,2]
[426049081,1782131505000,-500.0,0.00027945,2]
[426049103,1782131505000,-151.0,0.00027945,7]
[426049079,1782131505000,-500.0,0.00027945,2]
[426049107,1782131505000,-1212.631082,0.00027945,7]
[426049064,1782131505000,-957.109843,0.00027945,7]
[426049075,1782131505000,-151.0,0.00027945,7]
[426049066,1782131505000,-467.58,0.00027945,2]
[426049067,1782131505000,-500.0,0.00027945,2]
[426049074,1782131505000,-909.43,0.00027945,2]
[426049065,1782131505000,-500.0,0.00027945,2]
[426049069,1782131505000,-500.0,0.00027945,2]
[426049068,1782131505000,-957.109843,0.00027945,7]
[426049071,1782131505000,-957.109851,0.00027945,7]
[426049070,1782131505000,-9672.86,0.00027945,2]
[426049072,1782131505000,-500.0,0.00027945,2]
[426049073,1782131505000,-658.07,0.00027945,2]
[426049078,1782131505000,-151.0,0.00027945,7]
[426049076,1782131505000,-500.0,0.00027945,2]
[426049077,1782131505000,-500.0,0.00027945,2]
[426049085,1782131505000,-430.319792,0.00027945,7]
[426049086,1782131505000,-500.0,0.00027945,2]
[426049083,1782131505000,-500.0,0.00027945,2]
[426049080,1782131505000,-500.0,0.00027945,2]
[426049105,1782131505000,-500.0,0.00027945,2]
[426049112,1782131505000,-1212.631082,0.00027945,7]
[426049106,1782131505000,-8686.62,0.00027945,2]
[426049128,1782131505000,-151.0,0.00027945,7]
[426049141,1782131505000,-500.0,0.00027945,2]
[426049138,1782131505000,-250.687661,0.00027945,7]
[426049140,1782131505000,-525.454545,0.00027945,7]
[426049142,1782131505000,-500.0,0.00027945,2]
[426049136,1782131505000,-525.454552,0.00027945,7]
[426049137,1782131505000,-844.33,0.00027945,2]
[426049139,1782131505000,-500.0,0.00027945,2]
[426049143,1782131505000,-250.687659,0.00027945,7]
[426049134,1782131505000,-775.18,0.00027945,2]
[426049135,1782131505000,-500.0,0.00027945,2]
[426049144,1782131505000,-151.0,0.00027945,7]
[426049147,1782131505000,-1087.5,0.00027945,2]
[426049146,1782131505000,-500.0,0.00027945,2]
[426049151,1782131505000,-500.0,0.00027945,2]
[426049145,1782131505000,-500.0,0.00027945,2]
[426049149,1782131505000,-500.0,0.00027945,2]
[426049150,1782131505000,-500.0,0.00027945,2]
[426049108,1782131505000,-500.0,0.00027945,2]
[426049130,1782131505000,-500.0,0.00027945,2]
[426049131,1782131505000,-500.0,0.00027945,2]
[426049133,1782131505000,-500.0,0.00027945,2]
[426049127,1782131505000,-250.687661,0.00027945,7]
[426049110,1782131505000,-500.0,0.00027945,2]
[426049129,1782131505000,-525.454552,0.00027945,7]
[426049109,1782131505000,-151.0,0.00027945,7]
[426049111,1782131505000,-416.97,0.00027945,2]
[426049121,1782131505000,-500.0,0.00027945,2]
[426049122,1782131505000,-500.0,0.00027945,2]
[426049115,1782131505000,-500.0,0.00027945,2]
[426049116,1782131505000,-500.0,0.00027945,2]
[426049113,1782131505000,-151.0,0.00027945,7]
[426049117,1782131505000,-1212.631074,0.00027945,7]
[426049120,1782131505000,-500.0,0.00027945,2]
[426049114,1782131505000,-919.77,0.00027945,2]
[426049118,1782131505000,-500.0,0.00027945,2]
[426049119,1782131505000,-500.0,0.00027945,2]
[426049123,1782131505000,-500.0,0.00027945,2]
[426049126,1782131505000,-500.0,0.00027945,2]
[426049125,1782131505000,-5625.93,0.00027945,2]
[426049148,1782131505000,-912.76,0.00027945,2]
[426049124,1782131505000,-525.454552,0.00027945,7]
[426049132,1782131505000,-250.687661,0.00027945,7]
[426049199,1782131506000,-560.69,0.00027945,2]
[426049188,1782131506000,-151.0,0.00027945,7]
[426049189,1782131506000,-500.0,0.00027945,2]
[426049191,1782131506000,-777.53,0.00027945,2]
[426049187,1782131506000,-513.99304257,0.00027945,2]
[426049179,1782131506000,-500.0,0.00027945,2]
[426049184,1782131506000,-611.44351416,0.00027945,2]
[426049178,1782131506000,-452.624664,0.00027945,7]
[426049194,1782131506000,-500.0,0.00027945,2]
[426049183,1782131506000,-500.0,0.00027945,2]
[426049181,1782131506000,-1281.85,0.00027945,2]
[426049193,1782131506000,-537.51,0.00027945,2]
[426049203,1782131506000,-500.0,0.00027945,2]
[426049195,1782131506000,-805.85,0.00027945,2]
[426049192,1782131506000,-452.624664,0.00027945,7]
[426049197,1782131506000,-500.0,0.00027945,2]
[426049190,1782131506000,-404.565716,0.00027945,7]
[426049196,1782131506000,-452.624664,0.00027945,7]
[426049201,1782131506000,-879.74,0.00027945,2]
[426049204,1782131506000,-170.34321879,0.00027945,2]
[426049202,1782131506000,-500.0,0.00027945,2]
[426049211,1782131506000,-500.0,0.00027945,2]
[426049200,1782131506000,-500.0,0.00027945,2]
[426049206,1782131506000,-948.85,0.00027945,2]
[426049180,1782131506000,-500.0,0.00027945,2]
[426049198,1782131506000,-500.0,0.00027945,2]
[426049182,1782131506000,-151.0,0.00027945,7]
[426049156,1782131506000,-500.0,0.00027945,2]
[426049177,1782131506000,-404.565709,0.00027945,7]
[426049153,1782131506000,-313.45953,0.00027945,7]
[426049152,1782131506000,-729.92,0.00027945,2]
[426049159,1782131506000,-313.45953,0.00027945,7]
[426049161,1782131506000,-513.61,0.00027945,2]
[426049157,1782131506000,-500.0,0.00027945,2]
[426049160,1782131506000,-594.72028876,0.00027945,2]
[426049155,1782131506000,-2044.4,0.00027945,2]
[426049205,1782131506000,-1013.21,0.00027945,2]
[426049154,1782131506000,-2905.9,0.00027945,2]
[426049158,1782131506000,-4175.97,0.00027945,2]
[426049162,1782131506000,-500.0,0.00027945,2]
[426049163,1782131506000,-313.45953,0.00027945,7]
[426049175,1782131506000,-781.2,0.00027945,2]
[426049165,1782131506000,-500.0,0.00027945,2]
[426049172,1782131506000,-500.0,0.00027945,2]
[426049168,1782131506000,-895.47,0.00027945,2]
[426049167,1782131506000,-500.0,0.00027945,2]
[426049169,1782131506000,-313.459538,0.00027945,7]
[426049174,1782131506000,-500.0,0.00027945,2]
[426049170,1782131506000,-500.0,0.00027945,2]
[426049171,1782131506000,-404.565709,0.00027945,7]
[426049166,1782131506000,-500.0,0.00027945,2]
[426049164,1782131506000,-500.0,0.00027945,2]
[426049176,1782131506000,-554.0,0.00027945,2]
[426049185,1782131506000,-404.565709,0.00027945,7]
[426049186,1782131506000,-452.624664,0.00027945,7]
[426049173,1782131506000,-500.0,0.00027945,2]
[426049207,1782131506000,-502.838161,0.00027945,7]
[426049216,1782131506000,-500.0,0.00027945,2]
[426049209,1782131506000,-500.0,0.00027945,2]
[426049239,1782131506000,-36773.74,0.00028,2]
[426049240,1782131506000,-5023.3,0.00028,2]
[426049244,1782131506000,-285.84,0.0002812,30]
[426049245,1782131506000,-1285.07,0.0002812,30]
[426049241,1782131506000,-351.9,0.00028082,2]
[426049243,1782131506000,-7930.0,0.00028099,10]
[426049249,1782131506000,-670.47315313,0.00028136,2]
[426049248,1782131506000,-728.44225244,0.00028136,2]
[426049250,1782131506000,-708.70243584,0.00028136,2]
[426049258,1782131506000,-155.90730783,0.00028136,2]
[426049256,1782131506000,-418.7907892,0.00028136,2]
[426049208,1782131506000,-500.0,0.00027945,2]
[426049257,1782131506000,-410.65729424,0.00028136,2]
[426049254,1782131506000,-190.86020306,0.00028136,2]
[426049252,1782131506000,-150.84822407,0.00028136,2]
[426049253,1782131506000,-228.86671973,0.00028136,2]
[426049255,1782131506000,-200.31206096,0.00028136,2]
[426049259,1782131506000,-163.71747587,0.00028136,2]
[426049263,1782131506000,-584.94451699,0.00028136,2]
[426049261,1782131506000,-160.12493702,0.00028136,2]
[426049262,1782131506000,-159.67444372,0.00028136,2]
[426049260,1782131506000,-448.54719082,0.00028136,2]
[426049265,1782131506000,-173.06821854,0.00028137,2]
[426049266,1782131506000,-659.56292161,0.00028137,2]
[426049264,1782131506000,-385.95243938,0.00028136,2]
[426049247,1782131506000,-1066.35,0.00028125,30]
[426049242,1782131506000,-353.16,0.00028088,2]
[426049251,1782131506000,-377.84714451,0.00028136,2]
[426049238,1782131506000,-600.0,0.00028,2]
[426049246,1782131506000,-928.72,0.00028125,30]
[426049210,1782131506000,-500.0,0.00027945,2]
[426049214,1782131506000,-502.838161,0.00027945,7]
[426049212,1782131506000,-500.0,0.00027945,2]
[426049217,1782131506000,-500.0,0.00027945,2]
[426049215,1782131506000,-984.2,0.00027945,2]
[426049218,1782131506000,-508.68426065,0.00027945,2]
[426049220,1782131506000,-500.0,0.00027945,2]
[426049223,1782131506000,-1111.561301,0.00027945,7]
[426049222,1782131506000,-500.0,0.00027945,2]
[426049219,1782131506000,-502.838161,0.00027945,7]
[426049224,1782131506000,-502.838161,0.00027945,7]
[426049221,1782131506000,-500.0,0.00027945,2]
[426049213,1782131506000,-500.0,0.00027945,2]